Cogmind - Beta 13 @@@ ROGUE MODE // 2024.04.07 @ 00:46:51 Player: chexo4 Result: Destroyed by as-16628 with Assembled Blade Performance ------------- Evolutions (0) 0 Regions Visited (2) 400 Robots Destroyed (12) 60 Value Destroyed (257) 257 Prototype IDs (0) 0 Alien Tech Used (0) 0 Bonus (0) 0 TOTAL SCORE: 717 Bonus ------- None Cogmind --------- Core Integrity 0/250 Matter 174/300 Energy 140/140 System Corruption 22% Temperature Cool (0) Movement Hovering (77) Location -10/Mines Parts ------- > --- POWER (1) -------- Light Deuterium Engine > --- PROPULSION (2) --- Combat Airjet Combat Airjet > --- UTILITY (2) ------ Medium Storage Unit > --- WEAPON (2) ------- Mini Grenade Launcher Makeshift Hammer > --- INVENTORY (10) --- Light Ion Engine Wheel Wheel Wheel Thermal Generator Trap Scanner Signal Interpreter Target Analyzer Hardlight Generator Light Assault Rifle Peak State ------------ > --- POWER ------------ Light Deuterium Engine > --- PROPULSION ------- Combat Airjet Combat Airjet > --- UTILITY ---------- High-capacity Storage Unit Improved Propulsion Shielding > --- WEAPON ----------- Field Laser Makeshift Hammer > --- INVENTORY -------- Light Ion Engine Light Ion Engine Light Ion Engine Wheel Wheel Wheel Thermal Generator Medium Storage Unit Trap Scanner Signal Interpreter Improved Terrain Scanner Target Analyzer Hardlight Generator Assault Rifle Light Assault Rifle Light Assault Rifle Mini Grenade Launcher Mining Laser [Rating: 26] Favorites ----------- Power Light Ion Engine Engine Light Ion Engine Power Core Light Nuclear Core Propulsion Wheel Wheel Wheel Hover Unit Combat Airjet Utility High-capacity Storage Unit Device Advanced Weight Redist. System Storage High-capacity Storage Unit Protection Improved Propulsion Shielding Weapon Light Assault Rifle Energy Gun Field Laser Ballistic Gun Light Assault Rifle Launcher Mini Grenade Launcher Impact Weapon Makeshift Hammer Build | -11 -10 -10 ------- Run | Yrd Mat Min Slots Evolved . | . . . Power . | . . . Propulsion . | . . . Utility . | . . . Weapon . | . . . Parts Attached 30 | 6 2 22 Power 3 | 1 . 2 Engine 2 | 1 . 1 Core 1 | . . 1 Reactor . | . . . Propulsion 6 | 2 . 4 Treads . | . . . Leg . | . . . Wheel 4 | 2 . 2 Hover 2 | . . 2 Flight . | . . . Utility 9 | 1 2 6 Device 4 | . 1 3 Storage 4 | 1 1 2 Processor . | . . . Hackware . | . . . Protection 1 | . . 1 Artifact . | . . . Weapon 12 | 2 . 10 Energy Gun 2 | . . 2 Energy Cannon . | . . . Ballistic Gun 3 | 2 . 1 Ballistic Cannon . | . . . Launcher 4 | . . 4 Special Weapon . | . . . Impact Weapon 3 | . . 3 Slashing Weapon . | . . . Piercing Weapon . | . . . Special Melee Weapon . | . . . Unidentified Prototypes . | . . . Corrupted Parts 5 | . . 5 System Corruption 21 | . . 21 Parts Lost 6 | . . 6 Power 1 | . . 1 Propulsion . | . . . Utility 2 | . . 2 Weapon 3 | . . 3 Highest Loss Streak 3 | . . 3 To Critical Strikes . | . . . Average Slot Usage (%) 97 | . 100 96 Engine 11 | . 14 10 Core 1 | . . 1 Wheel 25 | . 28 24 Hover 2 | . . 3 Device 10 | . 14 8 Storage 14 | . 14 14 Protection 2 | . . 3 Energy Gun 8 | . . 11 Ballistic Gun 16 | . 28 11 Impact Weapon 2 | . . 3 Naked Turns . | . . . Heaviest Build 53 | 10 16 53 Greatest Support 35 | 26 26 35 Greatest Overweight (x) 2 | 2 . 2 Average Overweight (x) . | . . 1 Largest Inventory Capacity 20 | 8 10 20 Average Capacity 15 | 7 8 19 Most Carried 20 | 6 10 20 Average Carried 12 | 2 6 16 Final Capacity 10 | 8 10 10 Final Carried 10 | 6 10 10 Class Distribution -------------------- 100% | Mutant Dominant Class ---------------- Mutant | -10/Materials Mutant | -10/Mines Resources | -11 -10 -10 ----------- Run | Yrd Mat Min Matter Collected 448 | 228 66 154 Remotely . | . . . Salvage Created 439 | 91 42 306 Parts 23 | 6 2 15 Haulers Intercepted 1 | . 1 . Recyclers Shooed . | . . . Parts Field Recycled . | . . . Retrieved Matter . | . . . Parts Self-Destructed . | . . . Prevented . | . . . Kills | -11 -10 -10 ------- Run | Yrd Mat Min Combat Hostiles Destroyed 8 | . . 8 Melee 2 | . . 2 Guns 2 | . . 2 AOE 4 | . . 4 Classes Destroyed 9 | 2 1 6 Worker 1 | . . 1 Builder 2 | . . 2 Tunneler 1 | 1 . . Hauler 1 | . 1 . Recycler 1 | 1 . . Swarmer 1 | . . 1 Grunt 3 | . . 3 Demolisher 2 | . . 2 Assembled 2 | . . 2 Best Kill Streak 5 | 2 1 5 Combat Bots Only 4 | . . 4 Max Kills in Single Turn 2 | 1 1 2 Gunslinging . | . . . Exploded 1 | . . 1 Melee 1 | . . 1 Uniques/NPCs Destroyed . | . . . Combat | -11 -10 -10 -------- Run | Yrd Mat Min Hostile Shots Fired 41 | . . 41 Missed 9 | . . 9 Damage Taken 1014 | . . 1014 Core 255 | . . 255 Absorbed by Shields . | . . . Redirected to Shielding 106 | . . 106 Core Remaining (%) 100 | 100 . . Volleys Fired 35 | 5 7 23 Largest 2 | 2 2 2 Hottest 99 | 40 40 99 Shots Fired 54 | 10 14 30 Gun 48 | 10 14 24 Cannon . | . . . Launcher 6 | . . 6 Special . | . . . Kinetic 36 | 10 14 12 Thermal 12 | . . 12 Explosive 2 | . . 2 Electromagnetic 4 | . . 4 Robot Hit Streak 13 | 4 6 13 Robot Miss Streak 4 | 2 4 2 Penetration Max . | . . . Secondary Targets . | . . . Shots Hit Robots 35 | 5 6 24 Core Hits 23 | 4 2 17 Critical Kills . | . . . Critical Parts Destroyed 1 | . . 1 Critical Strikes 2 | . . 2 Destroy 1 | . . 1 Smash 1 | . . 1 Melee Attacks 7 | . . 7 Impact 7 | . . 7 Slashing . | . . . Piercing . | . . . Sneak Attacks 1 | . . 1 Combat Hostiles . | . . . Follow-up Attacks . | . . . Damage Inflicted 990 | 52 51 887 Guns 386 | 52 51 283 Cannons . | . . . Explosions 399 | . . 399 Melee 197 | . . 197 Ramming 8 | . . 8 Kinetic 231 | 52 51 128 Thermal 209 | . . 209 Explosive 141 | . . 141 Electromagnetic 204 | . . 204 Impact 197 | . . 197 Slashing . | . . . Piercing . | . . . Highest Corruption 22 | . . 22 Average Corruption 9 | . . 9 Corruption Purged . | . . . Corruption Blocked . | . . . Effects 8 | . . 8 Message Errors 1 | . . 1 Matter Fused 2 | . . 2 Heat Flow Errors 3 | . . 3 Weapon Failures 2 | . . 2 Overload Shots . | . . . Overflow Damage 74 | . . 74 Projectiles . | . . . Explosions . | . . . Melee 74 | . . 74 Knockbacks 2 | . . 2 Impact 2 | . . 2 Kinetic . | . . . Secondary . | . . . Self-Inflicted Damage 44 | . . 44 Shots 1 | . . 1 Rammed 1 | . . 1 Targets Rammed 1 | . . 1 Kicked . | . . . Crushed . | . . . Highest Temperature 216 | . . 216 Average Temperature 66 | . . 66 Received Heat Transfer 137 | . . 137 Siege Activations . | . . . Robots Corrupted . | . . . Combat Hostiles . | . . . Parts Fried 1 | . . 1 Impact Corruptions 3 | . . 3 Robots Melted . | . . . Combat Hostiles . | . . . Parts Melted . | . . . Heat Transferred 433 | . . 433 Parts Sabotaged . | . . . Parts Stolen . | . . . Parts Stripped . | . . . Power Chain Reactions 1 | . . 1 Alert | -11 -10 -10 ------- Run | Yrd Mat Min Peak Influence 130 | 10 37 130 Initial 14 | . 6 14 Average 30 | 2 16 40 Maximum Alert Level . | . . . Low Security (%) 100 | 100 100 100 Level 1 . | . . . Level 2 . | . . . Level 3 . | . . . Level 4 . | . . . Level 5 . | . . . High Security . | . . . Max Security . | . . . Squads Dispatched 1 | . . 1 Investigation 1 | . . 1 Extermination . | . . . Reinforcement . | . . . Assault . | . . . Garrison . | . . . Intercept . | . . . Searches Triggered . | . . . Construction Impeded . | . . . Haulers Reinforced . | . . . Active Scanning Responses . | . . . Cargo Convoy Interrupts . | . . . Stealth | -11 -10 -10 --------- Run | Yrd Mat Min Distress Signals 1 | . . 1 Communications Jammed . | . . . Distress Signals . | . . . Times Spotted 13 | . 2 11 Peak Tracking Total 4 | . 1 4 Tactical Retreats . | . . . Traps | -11 -10 -10 ------- Run | Yrd Mat Min Traps Triggered 2 | . . 2 Indirectly . | . . . Trap Hack Attempts . | . . . Triggered . | . . . Disarmed . | . . . Reprogrammed . | . . . Reused . | . . . Traps Extracted . | . . . Installed . | . . . Triggered . | . . . Machines | -11 -10 -10 ---------- Run | Yrd Mat Min Machines Disabled . | . . . Max in Single Turn . | . . . Machines Repaired . | . . . Machines Dismantled . | . . . Machines Sabotaged . | . . . Overloaded Fab Kills . | . . . Hacking | -11 -10 -10 --------- Run | Yrd Mat Min Machines Accessed 4 | . 2 2 Terminals 2 | . 2 . Fabricators . | . . . Repair Stations . | . . . Recycling Units . | . . . Scanalyzers . | . . . Garrison Access . | . . . Total Hacks 7 | . 5 2 Successful 4 | . 2 2 Failed 3 | . 3 . Catastrophic . | . . . Database Lockouts . | . . . Manual . | . . . Terminals 5 | . 5 . Fabricators . | . . . Repair Stations . | . . . Recycling Units . | . . . Scanalyzers . | . . . Garrison Access . | . . . Terminal Hacks 4 | . 2 2 Open Door 2 | . . 2 Locate Traps 1 | . 1 . Zone Layout 1 | . 1 . Fabricator Hacks . | . . . Repair Station Hacks . | . . . Recycling Unit Hacks . | . . . Scanalyzer . | . . . Garrison Access Hacks . | . . . Unauthorized Hacks . | . . . Terminals . | . . . Fabricators . | . . . Repair Stations . | . . . Recycling Units . | . . . Scanalyzers . | . . . Garrison Access . | . . . Data Cores Recovered . | . . . Used . | . . . Hacking Detections . | . . . Full Trace Events . | . . . Feedback Events . | . . . Feedback Blocked . | . . . Robot Schematics Acquired . | . . . Robots Built . | . . . Authchips . | . . . Time . | . . . Total Robot Build Rating . | . . . Part Schematics Acquired . | . . . Parts Built . | . . . Authchips . | . . . Time . | . . . Total Part Build Rating . | . . . Parts Repaired . | . . . Time . | . . . Parts Recycled . | . . . Recycled Matter . | . . . Retrieved Matter . | . . . Retrieved Components . | . . . Parts Scanalyzed . | . . . Part Schematics Acquired . | . . . Parts Damaged . | . . . Bothacking | -11 -10 -10 ------------ Run | Yrd Mat Min Used RIF Installer . | . . . Robots Hacked . | . . . Non-combat . | . . . Combat . | . . . Robot Hacks Applied . | . . . Relay Couplers Released . | . . . Fabnet Peak Effective % . | . . . Robots Rewired . | . . . Allies Hacked . | . . . Hacks Repelled . | . . . Allies | -11 -10 -10 -------- Run | Yrd Mat Min Total Allies 1 | . . 1 Largest Group 1 | . . 1 Highest-Rated Group 31 | . . 31 Highest-Rated Ally 31 | . . 31 Total Orders . | . . . Ally Attacks 4 | . . 4 Total Damage 21 | . . 21 Kills . | . . . Allies Corrupted . | . . . Allies Melted . | . . . Intel | -11 -10 -10 ------- Run | Yrd Mat Min Robot Analysis Total . | . . . Derelict Logs Recovered . | . . . Drone Launches . | . . . Drone Recoveries . | . . . Exploration | -11 -10 -10 ------------- Run | Yrd Mat Min Turns Passed 712 | 80 182 450 Spaces Moved 542 | 54 174 314 Core 13 | 13 . . Treads . | . . . Legs . | . . . Wheels 505 | 41 174 290 Hover 24 | . . 24 Flight . | . . . Fastest Speed 50 | 50 90 77 Average Speed 99 | 91 90 106 Slowest Speed 217 | 150 90 217 Overloaded Moves . | . . . Propulsion Burnouts . | . . . Robots Hopped . | . . . Cave-ins Triggered . | . . . Exploration Rate (%) 26 | 3 27 50 Regions Visited 2 Branch Regions 1 Pre-discovered Areas . | . . . Known Exits Taken . | . . . Unknown Exits Taken 2 | 1 1 . Scrap Searched . | . . . Spaces Dug . | . . . Terrain Destroyed 20 | . . 20 Melee . | . . . Projectile . | . . . AOE 20 | . . 20 Terrain Rammed . | . . . Walls Destroyed . | . . . Machines Disabled . | . . . Actions | -11 -10 -10 --------- Run | Yrd Mat Min Total 650 | 76 187 387 Wait . | . . . Move 540 | 53 173 314 Hop . | . . . Pick Up 33 | 12 5 16 Fast Attach 1 | . . 1 Attach 12 | 6 1 5 Detach . | . . . Swap 17 | . 1 16 Drop 4 | . . 4 Fire 35 | 5 7 23 Melee 7 | . . 7 Ram 1 | . . 1 Kick . | . . . Crush . | . . . Escape Stasis . | . . . Rewire . | . . . Trap . | . . . Miscellaneous . | . . . Route ------- -11/Scrapyard -10/Materials (discovered 2 exits: [*Mat] / *Min) -10/Mines History --------- Turn | Location | Event 29 | -11/Scrapyard | Discovered new exit (range 15) 81 | -11/Scrapyard | Entered Materials 186 | -10/Materials | Discovered new exit (range 16) 241 | -10/Materials | Discovered new exit (range 16) 263 | -10/Materials | Entered Mines 277 | -10/Mines | Met a Derelict shopkeep closing up shop 315 | -10/Mines | Build established: Mutant 428 | -10/Mines | A weapon hastily lodged in a ceiling crevice suddenly fell to the ground 469 | -10/Mines | Met a Derelict who couldn't figure out how to use a Trap Extractor 569 | -10/Mines | Assembled infested the area 572 | -10/Mines | Escorted by a lone wolf Derelict 606 | -10/Mines | Core integrity fell below 50% 621 | -10/Mines | Core integrity fell below 20% 651 | -10/Mines | Lost 3 parts (1p2w) 657 | -10/Mines | System corruption reached 10% 713 | -10/Mines | Destroyed by as-16628 with Assembled Blade Last Messages --------------- Knocked back. U-05 Engineer lays Concrete. Knocked back. U-05 Engineer builds a Wall. U-05 Engineer lays Concrete. U-05 Engineer builds a Wall. U-05 Engineer lays Concrete. as-48129 sneak attacks. U-05 Engineer system corrupted by crushing effect. U-05 Engineer lays Concrete. System corrupted: Matter fused (-6). U-05 Engineer lays Concrete. Acquired Mni. Grenade Launcher. U-05 Engineer lays Concrete. as-48129 destroyed. U-05 Engineer lays Concrete. as-20534 destroyed. System corrupted: Mni. Grenade Launcher failed to launch. Map ----- +----------------------------------------------------+ | ?????????????????????????????????????????????????? | | ?????????????????????????????????????????????????? | | ?????????????????????????????????????????????????? | | ?????????????????????????????????????????????????? | | ?????????????????????????????????????????????????? | | ?????????????????????????????????????????????????? | | ?????????????????????????????????????????????????? | | ?????????????????????????????????????????????????? | | ?????????????????????????????????????????????????? | | ?????????????????????????????????????????????????? | | ?????????????????????????????????????????????????? | | ?????????????????????????????????????????????????? | | ?????????????????????????????????????????????????? | | ?????????????????????????????????????????????????? | | ?????????????????????????????????????????????????? | | ?????????????????????????????????????????????????? | | ?????????????????????????????????????????????????? | | ?????????????????????????????????????????????????? | | ?????????????????????????????????????????????????? | | ?????????????????????????????????????????????????? | | ???????????????????????#####?????????????????????? | | ?????????????????####### ##????????????????????? | | ????????????????## ## ##???????????????????? | | ????????????????# #???????????????????? | | ????????????????# ##??????????????????? | | ????????????????# @ #??????????????????? | | ?????????????????# a #??????????????????? | | ?????????????????## # u #??????????????????? | | ??????????????????## #??????????????????? | | ???????????????????# % #??????????????????? | | ???????????????????# a #??????????????????? | | ??????????????#??#### |= ###??????????????????? | | ?????????? *[=[##????????????????????? | | ?????????????? ?#########[%##????????????????????? | | ?????????????? ?## ##![=##????????????????????? | | ?????????????# ## =!! *=!##????????????????????? | | ?????????????# ## ! ! %=#????????????????????? | | ?????????????# ### ! /##% % #????????????????????? | | ?????????????# #### ## ######## ????? | | ?####????????# ## %* #??????? | | ## #????????# ## ! % #???????? | | # #######??# ## ####### ### ##???????? | | ## ##?# ## ##?????????????????????? | | ### ####??????????????????????? | | # ##?????????????????????????? | | """ ###### ##??????????????????????????? | | """ #????# ####???????????????????????????? | | """ #????# #??????????????????????????????? | | """ #????# #??????????????????????????????? | | ##????# #??????????????????????????????? | +----------------------------------------------------+ Best States ------------- Heat Dissipation 25 Energy Generation 14 Energy Capacity 160 Matter Stores 300 Matter Capacity 300 Sight Range 16 Terrain Scan Range 16 Terrain Scan Density 10 Additional Mass Support 9 Propulsion Shielding 66 Evasion (%) 49 Trap Extractor Capacity 6 Item Schematics ----------------- None Robot Schematics ------------------ None Fabricated ------------ Nothing Alien Tech Used ----------------- None Achievements -------------- None Challenges ------------ None Game ------ Seed ImprovedArmageddonScreen Manual? 0 Play Time 00:11:05 Cumulative 11.7 hours Start 2024.04.07 @ 00:33:34 End 2024.04.07 @ 00:46:51 Sessions 1 Manual Loads 0 Difficulty Rogue Special Mode None Game No. 28 Rogue 28 Adventurer 0 Explorer 0 Win Type - Total 0 Types 0/0/0/0/0/0/0/0/0 Lore% 15 Gallery% 23 Achievement% 17 Wizard Run 0 Options --------- Layout 1 ASCII 0 Keyboard 0 Movement Arrows Keybinds 0 Fullscreen 1 Font 24/Smallcaps Map View 50x35 Zoom Use 0% Tactical HUD 0 Map Filters NONE Filters NONE Steam 1 RUN: 661d778e-0970-41b9-8413-ca582fba59e9